bitfinex-derivatives/quotes_SOLF0:USTF0_20250117
["timestamp","ask_amount","ask_price","bid_price","bid_amount"]
[1737104249610,1.4271,216.3,216.21,4.24218052]
[1737104249909,1.4271,216.3,216.18,22.67970527]
[1737104250105,1.4271,216.3,216.19,11.02969454]
[1737104250411,4.6256,216.25,216.2,4.24219021]
[1737104250608,1.4271,216.3,216.19,4.6266]
[1737104250910,1.4271,216.3,216.2,4.24293818]
[1737104251109,1.4271,216.3,216.19,4.6266]
[1737104251410,1.4271,216.3,216.2,4.24354894]
[1737104251702,4.6256,216.24,216.19,4.6266]
[1737104251908,4.6256,216.24,216.2,4.24354894]
[1737104252105,1.4271,216.3,216.18,18.05280527]
[1737104252311,4.6258,216.24,216.19,4.24456846]
[1737104252605,156.4271951,216.39,216.22,18.05280527]
[1737104252811,4.6237,216.34,216.28,4.6247]
[1737104253002,156.4271951,216.39,216.28,4.6247]
[1737104253207,156.4271951,216.39,216.23,1.4199]
[1737104253408,4.6239,216.33,216.26,4.625]
[1737104253609,4.6239,216.33,216.27,4.24138259]
[1737104253805,4.6239,216.33,216.26,4.625]
[1737104254001,4.6234,216.35,216.27,4.24122984]
[1737104254311,21.14970527,216.43,216.26,18.05280527]
[1737104254512,4.6227,216.38,216.32,4.6239]
[1737104254816,180.96506605,216.46,216.34,18.05280527]
[1737104255012,180.96506605,216.46,216.35,4.23805682]
[1737104255208,180.96506605,216.46,216.3,5.02]
[1737104255209,1.4948,216.46,216.3,23.07280527]
[1737104255416,1.4948,216.46,216.31,4.24049861]
[1737104255610,4.6224,216.39,216.32,4.6239]
[1737104255911,1.4948,216.46,216.3,23.07280527]
[1737104256909,4.6222,216.4,216.33,4.6237]
[1737104258711,4.6222,216.4,216.3,23.07280527]
[1737104258712,156.4271951,216.51,216.3,23.07280527]
[1737104258911,5.02,216.5,216.35,4.6232]
[1737104259615,4.622,216.41,216.35,4.6232]
[1737104260713,4.6223,216.4,216.33,4.6235]
[1737104261415,4.6227,216.38,216.31,6.1664]
[1737104262006,1.441,216.46,216.28,5.02]
[1737104262215,4.6224,216.39,216.32,4.6237]
[1737104263520,1.441,216.46,216.32,4.6237]
[1737104264020,4.6229,216.37,216.28,5.02]
[1737104264217,1.441,216.46,216.28,5.02]
[1737104264418,1.441,216.46,216.31,4.624]
[1737104264722,4.6226,216.39,216.28,5.02]
[1737104266124,4.6226,216.38,216.32,4.6239]
[1737104266315,23.05280527,216.42,216.27,1.4351]
[1737104266519,3.017,216.41,216.24,1.5471]
[1737104266714,3.017,216.41,216.22,18.05280527]
[1737104266715,4.6242,216.31,216.25,4.6253]
[1737104266918,18.05280527,216.38,216.22,18.05280527]
[1737104267119,1.5262,216.37,216.22,18.05280527]
[1737104267314,11.29829459,216.35,216.21,12.80789459]
[1737104267718,4.6246,216.29,216.24,4.6256]
[1737104268119,4.6246,216.29,216.21,12.80789459]
[1737104268319,4.6246,216.29,216.23,4.6257]
[1737104269218,11.29829459,216.35,216.23,4.6257]
[1737104269424,4.6243,216.31,216.24,4.6256]
[1737104271227,4.6243,216.31,216.25,4.6254]
[1737104272428,19.60447555,216.37,216.21,1.5096]
[1737104272626,4.6238,216.33,216.27,4.6248]
[1737104272925,19.60447555,216.37,216.21,1.5096]
[1737104273125,19.60447555,216.37,216.25,4.6252]
[1737104273521,1.5262,216.37,216.22,18.07827555]
[1737104273926,156.4271951,216.39,216.26,18.07827555]
[1737104274127,4.6225,216.39,216.3,4.6243]
[1737104274428,4.6225,216.39,216.26,18.07827555]
[1737104274633,4.6225,216.39,216.32,4.6237]
[1737104275132,3.017,216.41,216.32,4.6237]
[1737104275133,4.6226,216.38,216.32,4.6237]
[1737104275734,4.6235,216.34,216.29,4.6244]
[1737104275928,3.017,216.41,216.26,18.07827555]
[1737104276734,4.6226,216.38,216.3,4.6242]
[1737104276936,4.6226,216.38,216.26,18.07827555]
[1737104277335,3.017,216.41,216.26,18.07827555]
[1737104277635,3.017,216.41,216.27,2.9704]
[1737104277931,3.017,216.41,216.28,4.98]
[1737104279633,7.6391,216.41,216.35,4.6233]
[1737104281330,4.6222,216.4,216.35,4.6233]
[1737104282136,4.6219,216.42,216.33,4.6236]
[1737104282337,159.5332951,216.47,216.34,18.07827555]
[1737104282533,157.9841951,216.47,216.35,4.26055547]
[1737104282735,4.6209,216.46,216.4,4.6221]
[1737104282936,1.557,216.47,216.34,18.07827555]
[1737104283536,18.07827555,216.46,216.31,1.5178]
[1737104284044,3.0535,216.45,216.34,4.6234]
[1737104284547,4.6233,216.36,216.3,4.6243]
[1737104284736,18.07827555,216.42,216.26,18.07827555]
[1737104284933,18.07827555,216.42,216.27,4.26610613]
[1737104285136,4.6241,216.31,216.22,23.03827555]
[1737104285333,18.07827555,216.42,216.23,4.26719453]
[1737104285544,4.6236,216.34,216.24,4.6256]
[1737104285737,18.07827555,216.38,216.22,4.96]
[1737104285738,4.96,216.37,216.22,4.96]
[1737104285934,18.07827555,216.34,216.19,2.963]
[1737104286133,18.07827555,216.34,216.2,8.89637446]
[1737104286336,18.07827555,216.34,216.2,4.6263]
[1737104286535,4.6245,216.3,216.24,4.6256]
[1737104286738,156.4271951,216.32,216.24,4.6256]
[1737104286941,156.4271951,216.32,216.19,2.963]
[1737104287243,156.4271951,216.32,216.2,9.57620547]
[1737104287444,161.0512951,216.32,216.26,4.6252]
[1737104287943,4.6241,216.32,216.26,4.6252]
[1737104288440,156.4271951,216.34,216.19,2.963]
[1737104288641,18.07827555,216.33,216.2,11.0955138]
[1737104288841,18.07827555,216.33,216.19,1.5372]
[1737104289444,18.07827555,216.33,216.19,6.1638]
[1737104289746,4.6254,216.25,216.19,6.1638]
[1737104290848,4.6262,216.22,216.15,4.6274]
[1737104291048,4.6262,216.22,216.14,19.53437555]
[1737104291342,11.30576677,216.28,216.15,11.30576677]
[1737104291846,4.6262,216.22,216.12,17.46696677]
[1737104292048,11.30576677,216.25,216.12,12.83896677]
[1737104292243,11.30576677,216.22,216.09,11.30576677]
[1737104293047,4.627,216.18,216.11,4.6283]
[1737104293342,4.627,216.18,216.05,3.0038]
[1737104293343,156.4271951,216.24,216.12,11.30576677]
[1737104293943,156.4271951,216.24,216.12,15.93386677]
[1737104294142,11.30576677,216.25,216.12,15.93386677]
[1737104294448,4.6263,216.21,216.15,4.6275]
[1737104296145,4.6263,216.21,216.12,11.30576677]
[1737104296347,11.30576677,216.25,216.12,11.30576677]
[1737104296647,4.6265,216.2,216.12,11.30576677]
[1737104297545,4.6263,216.21,216.14,4.6277]
[1737104298140,7.475,216.27,216.2,4.6265]
[1737104298341,2.8499,216.27,216.18,11.30576677]
[1737104298548,2.8499,216.27,216.07,5.14]
[1737104298549,156.4271951,216.32,216.21,11.30576677]
[1737104298749,157.8871951,216.32,216.21,11.30576677]
[1737104299250,1.46,216.32,216.21,11.30576677]
[1737104299446,1.46,216.32,216.16,1.4308]
[1737104299447,1.46,216.32,216.18,18.08042338]
[1737104299845,4.6247,216.29,216.18,18.08042338]
[1737104300352,1.46,216.32,216.18,18.08042338]
[1737104300550,1.46,216.32,216.19,3.0654]
[1737104301147,1.46,216.32,216.18,18.08042338]
[1737104301841,1.5299,216.31,216.18,18.08042338]
[1737104303244,1.5299,216.31,216.19,4.6265]
[1737104304153,4.6249,216.28,216.19,4.6265]
[1737104304454,1.5299,216.31,216.2,4.6264]
[1737104304856,4.6254,216.25,216.16,1.4308]
[1737104305954,4.6256,216.24,216.19,4.6267]
[1737104306758,4.6256,216.24,216.18,4.6269]
[1737104307851,1.5299,216.31,216.16,1.4308]
[1737104308057,1.5299,216.31,216.17,18.08042338]
[1737104308451,4.6247,216.29,216.21,4.6262]
[1737104308653,4.6247,216.29,216.17,18.08042338]
[1737104309455,4.6243,216.3,216.24,4.6255]
[1737104309752,1.5299,216.31,216.17,18.08042338]
[1737104310460,1.46,216.32,216.17,18.08042338]
[1737104310858,4.6246,216.29,216.17,18.08042338]
[1737104311257,1.46,216.32,216.21,18.08042338]
[1737104311453,6.0839,216.32,216.21,18.08042338]
[1737104311657,1.46,216.32,216.21,18.08042338]
[1737104311860,6.0839,216.32,216.24,4.6255]
[1737104312057,6.0839,216.32,216.21,18.08042338]
[1737104312462,4.6233,216.35,216.29,4.6245]
[1737104312962,2.991,216.36,216.29,4.6245]
[1737104313662,7.6142,216.36,216.29,4.6245]
[1737104313964,6.1207,216.36,216.3,4.6242]
[1737104314262,1.4975,216.36,216.25,18.08042338]
[1737104314460,1.4627,216.38,216.32,4.6237]
[1737104314658,1.4627,216.38,216.26,1.4393]
[1737104315563,4.6239,216.33,216.26,6.0643]
[1737104315770,1.4627,216.38,216.26,4.625]
[1737104316464,1.4627,216.38,216.25,18.08042338]
[1737104316465,1.4627,216.38,216.22,1.422]
[1737104316669,1.4627,216.38,216.24,4.6255]
[1737104317057,4.6243,216.31,216.22,1.422]
[1737104317458,4.6243,216.31,216.25,4.6254]
[1737104317662,4.6235,216.34,216.22,1.422]
[1737104318064,1.4627,216.38,216.29,4.6245]
[1737104318767,4.6235,216.35,216.29,4.6245]
[1737104319065,4.6237,216.34,216.27,4.6248]
[1737104319263,1.4627,216.38,216.27,4.6248]
[1737104319462,1.4627,216.38,216.22,1.422]
[1737104319663,18.08042338,216.28,216.11,18.08042338]
[1737104319866,2.947,216.27,216.12,11.08409834]
[1737104320166,4.4606,216.27,216.12,6.82573068]
[1737104320364,4.6268,216.19,216.13,4.628]
[1737104320562,4.4606,216.27,216.12,1.5314]
[1737104320964,4.6268,216.19,216.12,6.1594]
[1737104321164,5.16,216.22,216.07,18.08042338]
[1737104321363,5.16,216.22,216.06,11.31397004]
[1737104321364,11.31397004,216.2,216.06,11.31397004]
[1737104321663,11.31397004,216.2,216.07,8.89141189]
[1737104321859,11.31397004,216.2,216.07,4.6292]
[1737104322972,4.6275,216.16,216.08,4.629]
[1737104323269,4.6275,216.16,216.06,11.31397004]
[1737104323469,4.6275,216.16,216.05,18.10049746]
[1737104324064,4.6275,216.16,216.09,4.6288]
[1737104325065,5.16,216.22,216.08,4.6289]
[1737104325459,5.16,216.22,216.05,18.10049746]
[1737104325667,18.10049746,216.18,216.04,1.5314]
[1737104325967,4.6363,216.17,216.04,1.5314]
[1737104326168,4.6284,216.11,216.04,1.5314]
[1737104326360,4.6363,216.17,216.04,1.5314]
[1737104326973,4.6363,216.17,216.05,4.6296]
[1737104327266,4.6363,216.17,216.04,1.5314]
[1737104327464,3.0618,216.17,216.04,1.5314]
[1737104327663,7.689,216.17,216.04,1.5314]
[1737104329064,7.689,216.17,216.09,4.6288]
[1737104329464,4.6274,216.16,216.09,4.6288]
[1737104329672,4.6274,216.16,216.04,1.5314]
[1737104329673,3.0618,216.17,216.04,1.5314]
[1737104330474,4.6276,216.15,216.09,4.6288]
[1737104331072,4.6276,216.15,216.04,1.5314]
[1737104331265,4.6276,216.15,216.05,4.26400714]
[1737104331472,4.6276,216.15,216.06,4.26400714]
[1737104331670,4.6276,216.15,216.04,1.5314]
[1737104331873,4.6276,216.15,216.05,4.26414195]
[1737104332065,4.6276,216.15,216.06,4.26414195]
[1737104332371,4.6276,216.15,216.04,1.5314]
[1737104332568,4.6276,216.15,216.05,4.26400211]
[1737104332770,4.6278,216.14,216.08,4.629]
[1737104334175,1.5745,216.24,216.06,18.10049746]
[1737104334375,4.6264,216.21,216.14,4.6277]
[1737104334572,1.5745,216.24,216.14,4.6277]
[1737104335875,1.5745,216.24,216.15,4.6275]
[1737104337077,4.6262,216.21,216.15,4.6275]
[1737104337978,2.9893,216.25,216.1,18.10049746]
[1737104338173,2.9893,216.25,216.14,18.10049746]
[1737104338873,4.6259,216.23,216.18,4.6269]
[1737104339068,4.6259,216.23,216.14,18.10049746]
[1737104339778,4.626,216.22,216.17,4.6271]
[1737104339978,2.9893,216.25,216.1,18.10049746]
[1737104340176,2.9893,216.25,216.08,8.47513546]
[1737104340478,2.9893,216.25,216.09,4.2606634]
[1737104340677,2.9893,216.25,216.1,4.2606634]
[1737104340971,4.6266,216.2,216.14,4.6277]
[1737104341174,2.9893,216.25,216.07,2.9885]
[1737104341773,2.9893,216.25,216.08,4.261491]
[1737104341966,2.9893,216.25,216.07,2.9885]
[1737104341967,2.9893,216.25,216.09,4.26077581]
[1737104342180,2.9893,216.25,216.1,4.26009892]
[1737104342371,2.9893,216.25,216.11,4.25970064]
[1737104342569,2.9893,216.25,216.08,1.31491055]
[1737104342769,2.9893,216.25,216.09,11.07489922]
[1737104342968,2.9893,216.25,216.1,4.25957662]
[1737104343177,4.6258,216.23,216.11,4.25957662]
[1737104343472,4.6258,216.23,216.07,2.9885]
[1737104343677,4.6258,216.23,216.08,12.38953849]
[1737104343879,4.6258,216.23,216.17,4.627]
[1737104346279,4.6256,216.24,216.18,4.6269]
[1737104346483,31.19873828,216.31,216.17,11.30563833]
[1737104346683,31.19873828,216.31,216.2,11.30563833]
[1737104347076,8.12274064,216.31,216.2,11.30563833]
[1737104347277,4.625,216.27,216.21,4.6262]
[1737104348481,4.6248,216.28,216.22,4.626]
[1737104349184,4.505,216.31,216.2,11.30563833]
[1737104349381,4.505,216.31,216.17,11.30563833]
[1737104349382,11.30563833,216.3,216.17,11.30563833]
[1737104349684,11.30563833,216.3,216.19,4.6267]
[1737104349976,11.30563833,216.3,216.17,11.30563833]
[1737104350181,4.6255,216.25,216.17,11.30563833]
[1737104350381,4.6255,216.25,216.19,4.6266]
[1737104350780,4.6255,216.25,216.17,11.30563833]
[1737104350980,4.6257,216.24,216.19,4.6267]
[1737104351381,11.30563833,216.3,216.17,11.30563833]
[1737104351581,11.30563833,216.3,216.15,1.4349]
[1737104351776,11.30563833,216.3,216.18,4.6269]
[1737104352082,3.0722,216.31,216.2,11.30563833]
[1737104352283,3.0722,216.31,216.15,12.74053833]
[1737104352284,4.6239,216.33,216.27,4.6248]
[1737104352580,156.4271951,216.35,216.23,11.30563833]
[1737104352778,161.0505951,216.35,216.28,4.6246]
[1737104352975,161.0505951,216.35,216.26,11.30563833]
[1737104353179,4.6234,216.35,216.26,11.30563833]
[1737104354082,15.91003833,216.39,216.26,11.30563833]
[1737104354485,15.91003833,216.39,216.27,4.6248]
[1737104355087,15.91003833,216.39,216.26,11.30563833]
[1737104355977,4.6232,216.36,216.26,11.30563833]
[1737104356486,15.91003833,216.39,216.26,11.30563833]
[1737104356985,15.91003833,216.39,216.24,1.5693]
[1737104357184,4.6241,216.31,216.25,4.6252]
[1737104358786,156.4271951,216.42,216.26,11.30563833]
[1737104358986,167.73283343,216.42,216.29,11.30563833]
[1737104359189,11.30563833,216.42,216.29,11.30563833]
[1737104359389,4.6228,216.38,216.31,4.624]
[1737104359685,11.30563833,216.42,216.29,11.30563833]
[1737104360490,4.6228,216.37,216.32,4.6239]
[1737104361392,11.30563833,216.42,216.29,11.30563833]
[1737104361592,4.6226,216.38,216.29,11.30563833]
[1737104361790,2.9052,216.44,216.32,11.30563833]
[1737104361791,156.4271951,216.43,216.32,11.30563833]
[1737104362001,161.0488951,216.43,216.36,4.623]
[1737104362193,156.4271951,216.43,216.35,11.30563833]
[1737104362693,68.66379977,216.48,216.35,11.30563833]
[1737104363197,156.4271951,216.49,216.38,11.30563833]
[1737104363393,156.4271951,216.49,216.41,11.30563833]
[1737104363692,2.8702,216.52,216.41,11.30563833]
[1737104363693,159.2973951,216.52,216.41,11.30563833]
[1737104364090,4.6204,216.49,216.42,4.6217]
[1737104364698,11.30563833,216.51,216.38,15.92803833]
[1737104364893,11.30563833,216.51,216.38,11.30563833]
[1737104366391,4.6205,216.48,216.41,4.6219]
[1737104366595,11.30563833,216.5,216.38,11.30563833]
[1737104366991,4.6209,216.46,216.36,6.0803]
[1737104367195,11.30563833,216.5,216.36,1.4573]
[1737104367899,4.6214,216.44,216.38,4.6226]
[1737104368694,11.30563833,216.5,216.36,1.4573]
[1737104368899,11.30563833,216.5,216.36,6.0802]
[1737104368900,4.6216,216.43,216.36,6.0802]
[1737104369296,11.30563833,216.5,216.36,1.4573]
[1737104369500,11.30563833,216.47,216.36,1.4573]
[1737104369998,4.6219,216.42,216.36,6.0803]
[1737104370601,4.6217,216.43,216.37,4.6227]
[1737104370796,4.6217,216.43,216.36,1.4573]
[1737104371192,11.30563833,216.47,216.36,1.4573]
[1737104371396,4.622,216.41,216.36,1.4573]
[1737104372398,4.6217,216.43,216.36,6.0803]
[1737104372897,11.30563833,216.5,216.36,1.4573]
[1737104373204,11.30563833,216.5,216.38,15.92823833]
[1737104373698,4.6214,216.44,216.38,15.92823833]
[1737104374894,4.6211,216.46,216.38,15.92823833]
[1737104375098,4.6211,216.46,216.39,4.6224]
[1737104375300,11.30563833,216.5,216.39,4.6224]
[1737104375495,4.6214,216.44,216.38,11.30563833]
[1737104375705,11.30563833,216.5,216.38,11.30563833]
[1737104376300,11.30563833,216.5,216.38,15.92803833]
[1737104376702,4.6213,216.45,216.38,15.92803833]
[1737104377009,4.6213,216.45,216.38,11.30563833]
[1737104377201,11.30563833,216.5,216.38,11.30563833]
[1737104377402,4.6205,216.48,216.38,11.30563833]
[1737104377603,1.4307,216.51,216.41,4.6218]
[1737104378006,1.4307,216.51,216.38,11.30563833]
[1737104378208,4.6214,216.44,216.39,4.6223]
[1737104378702,4.6214,216.44,216.38,11.30563833]
[1737104378902,4.6214,216.44,216.38,15.92823833]
[1737104379910,11.30563833,216.5,216.38,15.92823833]
[1737104380110,4.6216,216.43,216.38,11.30563833]
[1737104380305,4.6216,216.43,216.36,6.0801]
[1737104380306,4.6216,216.43,216.36,1.4573]
[1737104380907,4.6216,216.43,216.37,4.6226]
[1737104381415,167.73283343,216.5,216.36,1.4573]
[1737104381610,4.6213,216.45,216.38,11.30563833]
[1737104382309,4.6213,216.44,216.38,15.92823833]
[1737104383211,4.6213,216.44,216.39,4.6224]
[1737104383515,4.6212,216.45,216.39,4.6224]
[1737104383716,156.4271951,216.49,216.39,4.6224]
[1737104383916,4.6216,216.43,216.38,15.92823833]
[1737104384216,4.6216,216.43,216.38,11.30563833]
[1737104384815,4.6214,216.44,216.38,15.92813833]
[1737104385213,11.30563833,216.5,216.38,11.30563833]
[1737104386115,11.30563833,216.5,216.4,4.6222]
[1737104386413,2.8702,216.52,216.4,11.30563833]
[1737104386614,2.8702,216.52,216.42,4.6217]
[1737104386615,4.6207,216.48,216.42,4.6217]
[1737104386817,159.2973951,216.52,216.4,11.30563833]
[1737104387317,159.2973951,216.52,216.41,4.6219]
[1737104387318,4.6204,216.49,216.41,4.6219]
[1737104387517,2.8702,216.52,216.41,4.6219]
[1737104387911,2.8702,216.52,216.36,1.4573]
[1737104387912,11.30563833,216.47,216.36,1.4573]
[1737104388418,4.6224,216.39,216.36,1.4573]
[1737104389120,167.73283343,216.47,216.31,11.30563833]
[1737104389318,11.30563833,216.44,216.31,11.30563833]
[1737104389819,11.30563833,216.44,216.3,6.5041]
[1737104390010,11.30563833,216.44,216.3,1.5441]
[1737104390312,4.623,216.37,216.31,4.6241]
[1737104390516,3.0653,216.43,216.3,1.5441]
[1737104390714,4.6226,216.39,216.34,4.6234]
[1737104390922,4.6226,216.39,216.3,1.5441]
[1737104391125,156.4271951,216.4,216.32,11.30563833]
[1737104391313,161.0493951,216.4,216.34,4.6234]
[1737104391913,156.4271951,216.4,216.34,4.6234]
[1737104392123,4.6224,216.39,216.34,4.6234]
[1737104393822,161.0495951,216.39,216.34,4.6234]
[1737104394020,156.4271951,216.39,216.34,4.6234]
[1737104394420,156.4271951,216.39,216.32,11.30563833]
[1737104394824,156.4271951,216.39,216.35,11.30563833]
[1737104395026,156.4271951,216.39,216.38,15.92823833]
[1737104395225,156.4271951,216.4,216.38,11.30563833]
[1737104395924,156.4271951,216.43,216.38,11.30563833]
[1737104396326,156.4271951,216.42,216.38,11.30563833]
[1737104396526,156.4271951,216.42,216.36,4.94]
[1737104396827,156.4271951,216.42,216.38,11.30563833]
[1737104397528,156.4271951,216.42,216.36,4.94]
[1737104397930,156.4271951,216.41,216.36,4.94]
[1737104398527,156.4271951,216.41,216.37,4.6226]
[1737104398730,4.6215,216.44,216.36,4.94]
[1737104399029,4.6218,216.42,216.36,9.5629]
[1737104399230,190.10489666,216.45,216.36,4.94]
[1737104399729,4.6215,216.43,216.37,4.6227]
[1737104400627,4.6215,216.43,216.38,4.6225]
[1737104400927,194.72619666,216.45,216.38,11.30563833]
[1737104401732,190.10489666,216.45,216.4,4.6222]
[1737104401926,4.6218,216.42,216.35,11.30563833]
[1737104402232,11.30563833,216.43,216.3,6.05714402]
[1737104402627,3.0622,216.42,216.3,6.05714402]
[1737104402932,156.4271951,216.41,216.32,11.30563833]
[1737104403137,156.4271951,216.41,216.35,11.30563833]
[1737104403425,156.4271951,216.41,216.32,11.30563833]
[1737104403833,201.41053499,216.45,216.32,11.30563833]
[1737104403834,4.6224,216.39,216.32,11.30563833]
[1737104404131,4.6224,216.39,216.33,4.6235]
[1737104404631,156.4271951,216.42,216.32,11.30563833]
[1737104405036,156.4271951,216.42,216.33,4.20729361]
[1737104405233,156.4271951,216.42,216.32,11.30563833]
[1737104405535,4.6222,216.4,216.35,11.30563833]
[1737104405729,156.4271951,216.42,216.36,11.30563833]
[1737104405929,156.4271951,216.42,216.33,11.30563833]
[1737104406234,156.4271951,216.43,216.34,9.51296348]
[1737104406426,156.4271951,216.43,216.34,5.30571348]
[1737104406625,156.4271951,216.43,216.34,4.6234]
[1737104406626,4.6223,216.4,216.34,4.6234]
[1737104407335,4.6221,216.41,216.3,17.78973833]
[1737104407534,156.4271951,216.43,216.33,11.30563833]
[1737104407730,156.4271951,216.43,216.34,10.94289829]
[1737104407931,156.4271951,216.43,216.35,4.20880703]
[1737104408237,156.4271951,216.43,216.36,4.20880703]
[1737104408424,156.4271951,216.43,216.35,5.30775168]
[1737104408631,346.53209176,216.45,216.35,5.30775168]
[1737104408830,346.53209176,216.45,216.33,11.30563833]
[1737104409027,346.53209176,216.45,216.34,4.21054894]
[1737104409226,156.4271951,216.43,216.31,11.30563833]
[1737104409430,156.4271951,216.43,216.32,12.26351954]
[1737104409631,156.4271951,216.43,216.33,10.94919553]
[1737104409828,156.4271951,216.44,216.34,4.21122905]
[1737104410038,157.9059951,216.44,216.31,11.30563833]
[1737104410231,11.30563833,216.43,216.32,4.21139823]
[1737104410533,11.30563833,216.4,216.25,11.30563833]
[1737104410734,11.30563833,216.34,216.26,10.95288858]
[1737104410933,11.30563833,216.31,216.26,13.81744931]
[1737104411130,2.9199,216.33,216.26,6.73894931]
[1737104411532,1.4335,216.33,216.26,6.73894931]
[1737104411736,167.73283343,216.39,216.26,6.73894931]
[1737104412336,167.73283343,216.39,216.23,11.30563833]
[1737104412534,11.30563833,216.39,216.2,4.3714]
[1737104412839,11.30563833,216.39,216.27,4.6248]
[1737104412840,4.6235,216.34,216.27,4.6248]
[1737104413142,156.4271951,216.38,216.25,11.30563833]
[1737104413335,11.30563833,216.36,216.21,5.10182486]
[1737104413830,11.30563833,216.36,216.2,4.3714]
[1737104414039,4.6236,216.34,216.22,11.30563833]
[1737104414431,167.73283343,216.36,216.22,11.30563833]
[1737104414634,11.30563833,216.3,216.16,11.30563833]
[1737104415732,4.6252,216.26,216.19,4.6267]
[1737104416233,4.6249,216.28,216.21,4.6262]
[1737104416540,4.6249,216.28,216.14,4.94]
[1737104416541,156.4271951,216.3,216.18,11.30563833]
[1737104416738,349.52299176,216.32,216.18,11.30563833]
[1737104416938,349.52299176,216.32,216.14,4.94]
[1737104417232,4.6252,216.26,216.19,4.6266]
[1737104417438,11.30563833,216.27,216.15,11.30563833]
[1737104417641,27.92563833,216.27,216.12,11.30563833]
[1737104418032,11.30563833,216.21,216.09,11.30563833]
[1737104418233,4.627,216.18,216.1,4.6286]
[1737104418441,11.30563833,216.24,216.09,11.30563833]
[1737104418940,3.0114,216.23,216.09,11.30563833]
[1737104419142,4.4331,216.23,216.09,11.30563833]
[1737104419642,4.4331,216.23,216.09,15.93443833]
[1737104420142,4.4331,216.23,216.09,11.30563833]
[1737104420342,4.6271,216.17,216.1,4.6286]
[1737104420836,4.4331,216.23,216.09,15.93433833]
[1737104421241,4.4331,216.23,216.09,11.30563833]
[1737104421444,4.6271,216.17,216.11,4.6284]
[1737104422542,4.4331,216.23,216.11,4.6283]
[1737104422543,4.6269,216.18,216.11,4.6283]
[1737104423244,4.4331,216.23,216.15,11.30563833]
[1737104423545,16.62,216.27,216.18,11.30563833]
[1737104423745,16.62,216.27,216.15,11.30563833]
[1737104423945,16.62,216.27,216.12,11.30563833]
[1737104424344,16.62,216.27,216.05,4.94]
[1737104424345,11.30563833,216.26,216.06,7.87916162]
[1737104424543,16.62,216.27,216.12,11.30563833]
[1737104424848,16.62,216.27,216.15,11.30563833]
[1737104425045,16.62,216.27,216.12,11.30563833]
[1737104425541,16.62,216.27,216.13,4.6278]
[1737104425739,11.30563833,216.26,216.13,4.6278]
[1737104426143,11.30563833,216.26,216.12,11.30563833]
[1737104426742,4.6265,216.2,216.13,4.6278]
[1737104426945,11.30563833,216.26,216.13,4.6278]
[1737104427343,11.30563833,216.26,216.05,4.94]
[1737104427545,11.30563833,216.26,216.11,11.30563833]
[1737104428244,11.30563833,216.26,216.11,15.93383833]
[1737104428443,11.30563833,216.26,216.11,11.30563833]
[1737104428645,11.30563833,216.23,216.08,11.30563833]
[1737104428846,9.4522,216.22,216.08,11.30563833]
[1737104429445,9.4522,216.22,216.09,4.6287]
[1737104430045,4.6276,216.15,216.09,4.6287]
[1737104431052,4.5122,216.22,216.13,11.30563833]
[1737104431253,4.5122,216.22,216.05,7.86498852]
[1737104431450,4.6265,216.2,216.14,4.6277]
[1737104431654,4.5122,216.22,216.12,11.30563833]
[1737104431948,3.0182,216.22,216.15,11.30563833]
[1737104432148,3.0182,216.22,216.05,17.0287042]
[1737104432350,3.0182,216.22,216.12,11.30563833]
[1737104433250,3.0182,216.22,216.09,11.30563833]
[1737104434558,14.32383833,216.22,216.09,11.30563833]
[1737104434947,14.32383833,216.22,216.09,15.93443833]
[1737104435148,14.32383833,216.22,216.09,11.30563833]
[1737104435351,14.32383833,216.22,216.06,11.30563833]
[1737104435552,14.32383833,216.22,216.09,4.6287]
[1737104435752,11.30563833,216.19,216.03,1.4241]
[1737104435957,11.30563833,216.16,216.03,1.4241]
[1737104436253,11.30563833,216.16,216.01,11.30563833]
[1737104437146,4.6286,216.11,216.05,4.6296]
[1737104437755,11.30563833,216.13,216.02,5.10669154]
[1737104438056,2.9073,216.12,216.02,5.10669154]
[1737104438450,11.30563833,216.1,216.01,4.6305]
[1737104438651,11.30563833,216.1,215.98,41.21633823]